Cogmind - Beta 11.1 @@@ ROGUE MODE // 2022.12.09 @ 12:04:01 Player: Heclapar Result: Destroyed by G-67 Veteran with Field Laser Performance ------------- Evolutions (6) 3000 Regions Visited (14) 2800 Robots Destroyed (108) 540 Value Destroyed (3750) 3750 Prototype IDs (26) 520 Alien Tech Used (0) 0 Bonus (866) 866 TOTAL SCORE: 11476 Bonus ------- High Alert Combat Kills 8 Follower Combat Kills 334 Entered Garrisons 200 Used RIF Installer 500 Aligned with FarCom 300 Friendly Fire -476 Cogmind --------- Core Integrity 0/1150 Matter 43/300 Energy 100/100 System Corruption 7% Temperature Cool (9) Movement Core (50) Location -4/Extension Parts ------- > --- POWER (2) -------- (None) > --- PROPULSION (6) --- (None) > --- UTILITY (8) ------ (None) > --- WEAPON (3) ------- (None) > --- INVENTORY (5) ---- Advanced Heat Sink Medium Battery (150) Force Field Latent Energy Streamer Plasma Cutter Peak State ------------ > --- POWER ------------ Micro Fission Core Micro Fission Core > --- PROPULSION ------- Armored Medium Treads Carbon-fiber Leg Flexi-carbon Leg Wheel Armored Huge Wheel > --- UTILITY ---------- Advanced Heat Sink Coolant Injector High-capacity Storage Unit Enhanced Optical Array Improved Target Analyzer Improved Target Analyzer Improved Target Analyzer Hacking Suite > --- WEAPON ----------- Heavy Particle Gun Minigun Enhanced Coil Gun > --- INVENTORY -------- Micro Fission Core Advanced Heat Sink Advanced Coolant Injector Huge Storage Unit Medium Battery Energy Well Improved Target Analyzer Improved Transmission Jammer Force Field HERF Cannon HERF Cannon Latent Energy Streamer Shock Bomb Launcher Powered Hammer [Rating: 89] Favorites ----------- Power Improved Ion Engine Engine Improved Ion Engine Power Core Light Nuclear Core Reactor Antimatter Reactor Propulsion Aluminum Leg Treads Armored Medium Treads Leg Aluminum Leg Wheel Wheel Hover Unit Improved Linear Gravjet Utility Improved Targeting Computer Device Improved Cooling System Storage High-capacity Storage Unit Processor Improved Targeting Computer Hackware Hacking Suite Protection Hardened Light Armor Plating Weapon Beam Rifle Energy Gun Beam Rifle Energy Cannon HERF Cannon Ballistic Gun Heavy Assault Rifle Ballistic Cannon Linear Accelerator Launcher Shock Bomb Launcher Impact Weapon Powered Hammer Build | -11 -10 -9 -9 -9 -8 -8 -7 -7 -7 -7 -6 -5 -4 -4 ------- Run | Scr Mat Mat Min Exi Min Mat Fac Was Fac Gar Fac Fac Fac Ext Slots Evolved 12 | . . 2 . . . 2 2 . . . 2 2 2 . Power 1 | . . . . . . . . . . . . 1 . . Propulsion 4 | . . 1 . . . 1 . . . . 1 . 1 . Utility 6 | . . 1 . . . . 2 . . . 1 1 1 . Weapon 1 | . . . . . . 1 . . . . . . . . Parts Attached 155 | . 3 15 1 3 4 33 5 3 . 13 3 42 30 . Power 19 | . . 2 . . . 2 . 2 . 2 . 7 4 . Engine 6 | . . 2 . . . 1 . 1 . 1 . 1 . . Core 10 | . . . . . . 1 . . . . . 6 3 . Reactor 3 | . . . . . . . . 1 . 1 . . 1 . Propulsion 36 | . . 5 . . . 10 . . . 5 2 8 6 . Treads 1 | . . . . . . . . . . . . 1 . . Leg 27 | . . 5 . . . 8 . . . 5 2 6 1 . Wheel 7 | . . . . . . 2 . . . . . 1 4 . Hover 1 | . . . . . . . . . . . . . 1 . Flight . | . . . . . . . . . . . . . . . Utility 31 | . 3 3 . . . 4 2 1 . 1 1 10 6 . Device 11 | . . . . . . 2 . 1 . . 1 6 1 . Storage 5 | . 2 1 . . . 1 . . . . . . 1 . Processor 9 | . 1 1 . . . . 1 . . . . 3 3 . Hackware 1 | . . . . . . . . . . . . . 1 . Protection 5 | . . 1 . . . 1 1 . . 1 . 1 . . Artifact . | . . . . . . . . . . . . . . . Weapon 69 | . . 5 1 3 4 17 3 . . 5 . 17 14 . Energy Gun 33 | . . 2 1 2 2 8 3 . . 3 . 10 2 . Energy Cannon 4 | . . . . 1 . . . . . . . 2 1 . Ballistic Gun 15 | . . 2 . . . 5 . . . . . 2 6 . Ballistic Cannon 2 | . . . . . . . . . . . . . 2 . Launcher 13 | . . 1 . . 2 4 . . . 2 . 1 3 . Special Weapon . | . . . . . . . . . . . . . . . Impact Weapon 2 | . . . . . . . . . . . . 2 . . Slashing Weapon . | . . . . . . . . . . . . . . . Piercing Weapon . | . . . . . . . . . . . . . . . Special Melee Weapon . | . . . . . . . . . . . . . . . Unidentified Prototypes 3 | . . . . . . 2 . . . . . 1 . . Corrupted Parts 7 | . . . . . . . . . . 1 . 5 1 . System Corruption 37 | . . . . . . . . . . 8 . 28 1 . Parts Lost 59 | . . 4 1 . . 6 . . . 6 1 19 22 . Power 13 | . . 1 . . . 2 . . . 2 . 3 5 . Propulsion 23 | . . 2 . . . 3 . . . 1 1 7 9 . Utility 7 | . . 1 . . . . . . . 1 . 4 1 . Weapon 16 | . . . 1 . . 1 . . . 2 . 5 7 . Highest Loss Streak 15 | . . 2 1 . . 5 . . . 3 1 9 15 . To Critical Strikes 1 | . . . 1 . . . . . . . . . . . Average Slot Usage (%) 96 | . 100 98 99 96 100 99 100 100 100 98 99 95 75 . Engine 4 | . 14 10 11 11 11 5 . 1 . 2 6 2 . . Core 3 | . . . . . . 3 7 3 . . . 8 7 . Leg 28 | . 28 32 33 33 33 35 30 30 30 29 32 25 6 . Device 7 | . . . . . . 6 7 7 7 7 13 17 10 . Storage 7 | . 14 11 11 11 11 9 7 7 7 7 6 5 4 . Processor 12 | . 14 20 11 11 11 9 15 15 15 10 6 10 17 . Protection 5 | . . . 11 11 11 2 7 7 7 11 13 4 . . Energy Gun 15 | . 14 11 19 18 20 13 17 23 23 21 20 13 4 . Ballistic Gun 4 | . 14 10 1 . . 12 4 . . . . . 7 . Naked Turns 64 | . . . . . . . . . . . . . 32 32 Heaviest Build 107 | 10 25 38 38 42 40 58 61 73 73 75 69 101 107 . Greatest Support 80 | 20 20 33 33 33 33 52 52 52 52 62 77 80 70 3 Greatest Overweight (x) 5 | . 1 1 1 1 1 1 1 1 1 1 1 2 5 . Average Overweight (x) . | . . . 1 . 1 . 1 1 1 1 . . . . Largest Inventory Capacity 25 | . 15 15 15 15 15 20 20 20 20 20 20 20 25 5 Average Capacity 17 | . 9 15 15 15 15 16 20 20 20 20 20 20 19 5 Most Carried 21 | . 12 15 13 15 15 18 20 20 20 20 20 20 21 5 Average Carried 16 | . 8 13 12 13 14 14 18 19 19 19 19 18 15 5 Final Capacity 20 | 8 15 15 15 15 15 20 20 20 20 20 20 20 5 5 Final Carried 20 | 6 12 13 13 15 15 18 20 20 20 20 19 17 5 5 Class Distribution -------------------- 32% | Scavenger-Skirmisher 26% | Mutant 18% | Scavenger-Tank 15% | Scavenger-Mutant 6% | Scavenger-Gunner Dominant Class ---------------- Mutant | -10/Materials Mutant | -9/Materials Mutant | -9/Mines Mutant | -9/Exiles Mutant | -8/Mines Scavenger-Skirmisher | -8/Materials Scavenger-Skirmisher | -7/Factory Scavenger-Skirmisher | -7/Waste Scavenger-Skirmisher | -7/Factory Scavenger-Tank | -7/Garrison Scavenger-Tank | -6/Factory Scavenger-Tank | -5/Factory Scavenger-Gunner | -4/Factory Mutant | -4/Extension Resources | -11 -10 -9 -9 -9 -8 -8 -7 -7 -7 -7 -6 -5 -4 -4 ----------- Run | Scr Mat Mat Min Exi Min Mat Fac Was Fac Gar Fac Fac Fac Ext Matter Collected 2301 | 198 . 248 33 . 55 723 . 119 . 155 . 429 341 . Remotely . | . . . . . . . . . . . . . . . Salvage Created 4768 | . 44 524 60 . 99 1040 . . 79 423 60 1207 1232 . Parts 234 | . 3 38 8 . 14 59 . . 3 18 3 33 55 . Haulers Intercepted 4 | . . . . . . 3 . . . . . . 1 . Recyclers Shooed 6 | . . . . . . . . . . . . . 6 . Parts Field Recycled . | . . . . . . . . . . . . . . . Retrieved Matter . | . . . . . . . . . . . . . . . Parts Self-Destructed . | . . . . . . . . . . . . . . . Prevented . | . . . . . . . . . . . . . . . Kills | -11 -10 -9 -9 -9 -8 -8 -7 -7 -7 -7 -6 -5 -4 -4 ------- Run | Scr Mat Mat Min Exi Min Mat Fac Was Fac Gar Fac Fac Fac Ext Combat Hostiles Destroyed 80 | . 1 12 4 . 7 22 . . . 7 1 17 9 . Guns 53 | . 1 10 4 . 3 14 . . . 4 1 11 5 . Cannons 4 | . . . . . . . . . . . . 3 1 . AOE 18 | . . 2 . . 4 8 . . . 3 . . 1 . Classes Destroyed 12 | . 1 5 1 . . 2 . . 1 2 . . . . Worker 5 | . . 1 . . 1 . . . . . . 2 1 . Builder 7 | . . 1 . . . 3 . . . . . 1 2 . Hauler 4 | . . . . . . 3 . . . . . . 1 . Recycler 5 | . . . . . . . . . 1 . . 1 3 . Operator 2 | . . 1 . . . . . . . . . . 1 . Watcher 4 | . . 2 . . . 1 . . . . . 1 . . Swarmer 19 | . . . 4 . 7 4 . . . 1 . 3 . . Grunt 42 | . 1 8 . . . 13 . . . 5 . 11 4 . Sentry 10 | . . 4 . . . 4 . . . . 1 1 . . Hunter 4 | . . . . . . 1 . . . . . . 3 . Programmer 5 | . . . . . . . . . . 1 . 2 2 . Butcher 1 | . . . . . . . . . . 1 . . . . Best Kill Streak 9 | . 1 7 4 . 4 7 . . 1 3 1 9 9 . Combat Bots Only 7 | . 1 4 4 . 4 5 . . . 3 1 7 3 . Max Kills in Single Turn 3 | . 1 1 2 . 3 2 . . 1 3 1 2 1 . Gunslinging 1 | . . . . . . 1 . . . . . . . . Exploded 3 | . . 1 . . 3 2 . . . 3 . . 1 . Melee . | . . . . . . . . . . . . . . . Uniques/NPCs Destroyed . | . . . . . . . . . . . . . . . Combat | -11 -10 -9 -9 -9 -8 -8 -7 -7 -7 -7 -6 -5 -4 -4 -------- Run | Scr Mat Mat Min Exi Min Mat Fac Was Fac Gar Fac Fac Fac Ext Damage Taken 8854 | . . 832 83 . 170 1018 . . . 662 370 2018 3451 250 Core 1798 | . . 191 8 . 40 160 . . . 59 63 112 915 250 Absorbed by Shields 232 | . . . . . . . . . . . . 232 . . Regen/Repaired (Parts) 72 | . . . . . . 72 . . . . . . . . Core Remaining (%) 83 | 100 100 . . . 40 70 . . . 91 92 88 . . Volleys Fired 270 | . 1 40 7 . 9 68 . . 1 14 18 57 55 . Largest 3 | . 2 2 2 . 2 3 . . 3 3 1 3 3 . Hottest 243 | . 60 79 79 . 112 144 . . 190 190 55 243 162 . Shots Fired 604 | . 2 74 11 . 19 176 . . 3 37 18 147 117 . Gun 557 | . 2 68 11 . 15 167 . . 3 29 18 139 105 . Cannon 11 | . . . . . . . . . . . . 8 3 . Launcher 36 | . . 6 . . 4 9 . . . 8 . . 9 . Special . | . . . . . . . . . . . . . . . Kinetic 197 | . 1 34 3 . . 81 . . . . . 1 77 . Thermal 323 | . 1 34 8 . 15 77 . . 1 17 18 122 30 . Explosive 16 | . . 6 . . 4 4 . . . . . . 2 . Electromagnetic 68 | . . . . . . 14 . . 2 20 . 24 8 . Robot Hit Streak 19 | . 2 17 6 . 4 14 . . 5 8 14 19 11 . Robot Miss Streak 5 | . . 3 2 . 5 4 . . . 3 2 5 3 . Penetration Max 1 | . . . . . . . . . . . . . 1 . Secondary Targets 5 | . . . 1 . 2 1 . . . . . 1 . . Max Gunslinging Chain 1 | . . . 1 . 1 1 . . . . . 1 . . Shots Hit Robots 417 | . 2 61 8 . 7 117 . . 1 19 15 109 78 . Core Hits 232 | . 2 26 4 . 7 55 . . 1 27 3 60 46 1 Critical Kills 1 | . . . . . . . . . . . . . 1 . Critical Parts Destroyed 9 | . . . . . . . . . . . . . 9 . Critical Strikes 24 | . . 4 . . . 4 . . . . . 4 12 . Burn 14 | . . 4 . . . 4 . . . . . 4 2 . Destroy 10 | . . . . . . . . . . . . . 10 . Melee Attacks 17 | . . . . . . . . . . . . 17 . . Impact 17 | . . . . . . . . . . . . 17 . . Slashing . | . . . . . . . . . . . . . . . Piercing . | . . . . . . . . . . . . . . . Sneak Attacks . | . . . . . . . . . . . . . . . Combat Hostiles . | . . . . . . . . . . . . . . . Follow-up Attacks . | . . . . . . . . . . . . . . . Damage Inflicted 11178 | . 19 1438 133 . 336 2757 . . 22 961 286 2524 2673 29 Guns 7507 | . 19 807 133 . 88 1720 . . 22 281 286 2255 1896 . Cannons 310 | . . . . . . . . . . . . 197 113 . Explosions 3320 | . . 631 . . 248 1033 . . . 680 . 64 664 . Melee . | . . . . . . . . . . . . . . . Ramming 41 | . . . . . . 4 . . . . . 8 . 29 Kinetic 2814 | . 7 377 32 . . 834 . . . . . 23 1541 . Thermal 4382 | . 12 430 101 . 88 796 . . . 146 286 2076 447 . Explosive 1629 | . . 631 . . 248 659 . . . . . . 91 . Electromagnetic 2274 | . . . . . . 464 . . 22 815 . 417 556 . Impact 38 | . . . . . . . . . . . . . 38 . Slashing . | . . . . . . . . . . . . . . . Piercing . | . . . . . . . . . . . . . . . Highest Corruption 35 | . . 2 2 2 2 . . . . 9 . 35 6 7 Average Corruption 12 | . . 2 2 2 2 . . . . 7 . 28 5 6 Corruption Purged . | . . . . . . . . . . . . . . . Corruption Blocked . | . . . . . . . . . . . . . . . Effects 94 | . . 3 2 10 3 . . . . 6 . 55 15 . Message Errors 21 | . . . 1 1 1 . . . . 1 . 15 2 . Matter Fused 21 | . . 1 . 1 1 . . . . . . 12 6 . Heat Flow Errors 10 | . . 1 . 1 . . . . . . . 6 2 . Energy Discharges 10 | . . . . 2 . . . . . 2 . 5 1 . Parts Rejected 1 | . . . . . . . . . . . . . 1 . Data Loss (minor) 10 | . . . . 2 . . . . . 2 . 5 1 . Data Loss (major) 5 | . . . . 1 . . . . . . . 3 1 . Misfires 8 | . . . 1 . 1 . . . . 1 . 5 . . Alerts 5 | . . 1 . 2 . . . . . . . 2 . . Weapon Failures 3 | . . . . . . . . . . . . 2 1 . Overload Shots . | . . . . . . . . . . . . . . . Overflow Damage 131 | . . 33 . . 51 9 . . . . . 27 11 . Projectiles 27 | . . . . . . . . . . . . 27 . . Explosions 104 | . . 33 . . 51 9 . . . . . . 11 . Melee . | . . . . . . . . . . . . . . . Knockbacks 1 | . . . . . . . . . . . . . 1 . Impact . | . . . . . . . . . . . . . . . Kinetic 1 | . . . . . . . . . . . . . 1 . Secondary . | . . . . . . . . . . . . . . . Self-Inflicted Damage 123 | . . . . . . 45 . . . 27 . 24 15 12 Shots 7 | . . . . . . 2 . . . 3 . 1 1 . Rammed 10 | . . . . . . . . . . . . . . 10 Targets Rammed 12 | . . . . . . 1 . . . . . 1 . 10 Kicked 2 | . . . . . . 1 . . . . . 1 . . Crushed . | . . . . . . . . . . . . . . . Highest Temperature 414 | . 20 141 225 147 358 414 . . 51 163 . 340 116 . Average Temperature 92 | . 15 46 109 81 162 123 . . 28 55 . 80 26 . Received Heat Transfer 1952 | . . 294 . . . 459 . . . 258 81 498 314 48 Effects 11 | . . . . . 2 6 . . . . . 3 . . Energy Bleed 1 | . . . . . . 1 . . . . . . . . Interference 9 | . . . . . 1 5 . . . . . 3 . . Damage (minor) 1 | . . . . . 1 . . . . . . . . . Siege Activations . | . . . . . . . . . . . . . . . Robots Corrupted 2 | . . . . . . . . . . . . . 2 . Combat Hostiles 2 | . . . . . . . . . . . . . 2 . Parts Fried 6 | . . . . . . 1 . . . 1 . . 4 . Impact Corruptions . | . . . . . . . . . . . . . . . Robots Melted 3 | . . . . . . . . . . . . 3 . . Combat Hostiles 3 | . . . . . . . . . . . . 3 . . Parts Melted 29 | . . 5 1 . 2 8 . . . . . 13 . . Heat Transferred 10613 | . 25 1383 259 . 222 2246 . . . 297 555 4625 1001 . Parts Sabotaged . | . . . . . . . . . . . . . . . Parts Stolen . | . . . . . . . . . . . . . . . Parts Stripped . | . . . . . . . . . . . . . . . Power Chain Reactions 2 | . . . . . . 1 . . . . . . 1 . Missiles Intercepted . | . . . . . . . . . . . . . . . Latent Energy Used 98 | . . . . . . . . . . . . . 98 . LE Corruption 2 | . . . . . . . . . . . . . 2 . Alert | -11 -10 -9 -9 -9 -8 -8 -7 -7 -7 -7 -6 -5 -4 -4 ------- Run | Scr Mat Mat Min Exi Min Mat Fac Was Fac Gar Fac Fac Fac Ext Peak Influence 435 | . 30 435 153 . 188 385 95 33 70 370 262 353 285 98 Initial 193 | . . . 73 . . 72 95 33 . 49 193 128 86 98 Average 161 | . 5 203 141 . 113 202 95 16 30 255 204 203 157 98 Maximum Alert Level 2 | . . 2 . . . 1 . . . 1 1 1 1 . Low Security (%) 65 | . 100 51 100 . 100 49 100 100 100 36 64 44 76 100 Level 1 33 | . . 34 . . . 50 . . . 63 35 55 23 . Level 2 1 | . . 14 . . . . . . . . . . . . Level 3 . | . . . . . . . . . . . . . . . Level 4 . | . . . . . . . . . . . . . . . Level 5 . | . . . . . . . . . . . . . . . High Security . | . . . . . . . . . . . . . . . Max Security . | . . . . . . . . . . . . . . . Squads Dispatched 15 | . 1 1 . . . 5 . . . . 1 4 3 . Investigation 4 | . 1 . . . . 3 . . . . . . . . Extermination 2 | . . . . . . . . . . . . 2 . . Reinforcement 9 | . . 1 . . . 2 . . . . 1 2 3 . Assault . | . . . . . . . . . . . . . . . Garrison . | . . . . . . . . . . . . . . . Intercept . | . . . . . . . . . . . . . . . Searches Triggered . | . . . . . . . . . . . . . . . Construction Impeded 3 | . . . . . . 1 . . . . . . 2 . Haulers Reinforced 1 | . . . . . . . . . . . . . 1 . Active Scanning Responses . | . . . . . . . . . . . . . . . Cargo Convoy Interrupts . | . . . . . . . . . . . . . . . Stealth | -11 -10 -9 -9 -9 -8 -8 -7 -7 -7 -7 -6 -5 -4 -4 --------- Run | Scr Mat Mat Min Exi Min Mat Fac Was Fac Gar Fac Fac Fac Ext Distress Signals 5 | . . 1 . . . 3 . . . . . . 1 . Communications Jammed 6 | . . . . . . . . . . . . 3 3 . Distress Signals 6 | . . . . . . . . . . . . 3 3 . Times Spotted 158 | . 1 23 4 . 7 34 . . 1 20 6 31 29 2 Peak Tracking Total 12 | . 1 6 4 . 3 6 . . 1 12 5 10 12 2 Tactical Retreats 13 | . . 1 . . . 2 . . . 2 . 6 2 . Traps | -11 -10 -9 -9 -9 -8 -8 -7 -7 -7 -7 -6 -5 -4 -4 ------- Run | Scr Mat Mat Min Exi Min Mat Fac Was Fac Gar Fac Fac Fac Ext Traps Triggered 7 | . 1 1 . . . 1 1 . . 1 . . . 2 Indirectly . | . . . . . . . . . . . . . . . Trap Hack Attempts . | . . . . . . . . . . . . . . . Triggered . | . . . . . . . . . . . . . . . Disarmed . | . . . . . . . . . . . . . . . Reprogrammed . | . . . . . . . . . . . . . . . Reused . | . . . . . . . . . . . . . . . Traps Extracted . | . . . . . . . . . . . . . . . Installed . | . . . . . . . . . . . . . . . Triggered . | . . . . . . . . . . . . . . . Machines | -11 -10 -9 -9 -9 -8 -8 -7 -7 -7 -7 -6 -5 -4 -4 ---------- Run | Scr Mat Mat Min Exi Min Mat Fac Was Fac Gar Fac Fac Fac Ext Machines Disabled 12 | . . 3 . . . 3 . . . . . 4 2 . Max in Single Turn 4 | . . 2 . . . 1 . . . . . 4 1 . Machines Sabotaged . | . . . . . . . . . . . . . . . Garrisons Compromised . | . . . . . . . . . . . . . . . Overloaded Fab Kills . | . . . . . . . . . . . . . . . Hacking | -11 -10 -9 -9 -9 -8 -8 -7 -7 -7 -7 -6 -5 -4 -4 --------- Run | Scr Mat Mat Min Exi Min Mat Fac Was Fac Gar Fac Fac Fac Ext Machines Accessed 21 | . 3 1 . 2 . 7 . . 1 . 2 3 1 1 Terminals 12 | . 2 1 . . . 5 . . . . 1 2 . 1 Fabricators 3 | . . . . . . . . . . . 1 1 1 . Repair Stations 1 | . . . . . . 1 . . . . . . . . Recycling Units 1 | . 1 . . . . . . . . . . . . . Scanalyzers 1 | . . . . . . 1 . . . . . . . . Garrison Access 1 | . . . . . . . . . 1 . . . . . Total Hacks 46 | . 9 3 . 2 . 20 . . 2 . 4 4 1 1 Successful 24 | . 5 3 . 2 . 8 . . 1 . 2 1 1 1 Failed 22 | . 4 . . . . 12 . . 1 . 2 3 . . Catastrophic 6 | . 1 . . . . 3 . . . . . 2 . . Database Lockouts . | . . . . . . . . . . . . . . . Manual 28 | . 5 3 . 1 . 13 . . . . 3 3 . . Terminals 30 | . 7 3 . . . 13 . . . . 3 3 . 1 Fabricators 3 | . . . . . . . . . . . 1 1 1 . Repair Stations 3 | . . . . . . 3 . . . . . . . . Recycling Units 2 | . 2 . . . . . . . . . . . . . Scanalyzers 4 | . . . . . . 4 . . . . . . . . Garrison Access 2 | . . . . . . . . . 2 . . . . . Terminal Hacks 8 | . 2 2 . 2 . 1 . . . . . . . 1 Record 2 | . . . . 1 . . . . . . . . . 1 Terminal Index 1 | . . 1 . . . . . . . . . . . . Alert Level 1 | . 1 . . . . . . . . . . . . . Unreport Threat 3 | . 1 1 . . . 1 . . . . . . . . EX-Prototype ID Bank 1 | . . . . 1 . . . . . . . . . . Fabricator Hacks 3 | . . . . . . . . . . . 1 1 1 . Network Status 1 | . . . . . . . . . . . . 1 . . Build 2 | . . . . . . . . . . . 1 . 1 . Repair Station Hacks 2 | . . . . . . 2 . . . . . . . . Scan Component 1 | . . . . . . 1 . . . . . . . . Repair 1 | . . . . . . 1 . . . . . . . . Recycling Unit Hacks 2 | . 2 . . . . . . . . . . . . . Report Inventory 1 | . 1 . . . . . . . . . . . . . Retrieve Components 1 | . 1 . . . . . . . . . . . . . Scanalyzer 4 | . . . . . . 4 . . . . . . . . Insert Component 2 | . . . . . . 2 . . . . . . . . Analyze 2 | . . . . . . 2 . . . . . . . . Garrison Access Hacks 1 | . . . . . . . . . 1 . . . . . Unlock Access 1 | . . . . . . . . . 1 . . . . . Unauthorized Hacks 4 | . 1 1 . . . 1 . . . . 1 . . . Terminals 4 | . 1 1 . . . 1 . . . . 1 . . . Botnet 4 | . 1 1 . . . 1 . . . . 1 . . . Fabricators . | . . . . . . . . . . . . . . . Repair Stations . | . . . . . . . . . . . . . . . Recycling Units . | . . . . . . . . . . . . . . . Scanalyzers . | . . . . . . . . . . . . . . . Garrison Access . | . . . . . . . . . . . . . . . Data Cores Recovered 1 | . . . . . . . . . . . . . 1 . Used . | . . . . . . . . . . . . . . . Hacking Detections 16 | . 3 1 . . . 7 . . . . 1 2 1 1 Full Trace Events 2 | . . . . . . 2 . . . . . . . . Feedback Events . | . . . . . . . . . . . . . . . Feedback Blocked . | . . . . . . . . . . . . . . . Robot Schematics Acquired . | . . . . . . . . . . . . . . . Robots Built . | . . . . . . . . . . . . . . . Authchips . | . . . . . . . . . . . . . . . Time . | . . . . . . . . . . . . . . . Total Robot Build Rating . | . . . . . . . . . . . . . . . Part Schematics Acquired 2 | . . . . . . 2 . . . . . . . . Parts Built 4 | . . . . . . . . . . . 2 . 2 . Authchips . | . . . . . . . . . . . . . . . Time 223 | . . . . . . . . . . . 95 . 128 . Total Part Build Rating 26 | . . . . . . . . . . . 10 . 16 . Parts Repaired 1 | . . . . . . 1 . . . . . . . . Time 32 | . . . . . . 32 . . . . . . . . Parts Recycled . | . . . . . . . . . . . . . . . Recycled Matter . | . . . . . . . . . . . . . . . Retrieved Matter . | . . . . . . . . . . . . . . . Retrieved Components 2 | . 2 . . . . . . . . . . . . . Parts Scanalyzed 2 | . . . . . . 2 . . . . . . . . Part Schematics Acquired 2 | . . . . . . 2 . . . . . . . . Parts Damaged . | . . . . . . . . . . . . . . . Bothacking | -11 -10 -9 -9 -9 -8 -8 -7 -7 -7 -7 -6 -5 -4 -4 ------------ Run | Scr Mat Mat Min Exi Min Mat Fac Was Fac Gar Fac Fac Fac Ext Used RIF Installer 1 | . . . . . . . . . . 1 . . . . Robots Hacked . | . . . . . . . . . . . . . . . Non-combat . | . . . . . . . . . . . . . . . Combat . | . . . . . . . . . . . . . . . Robot Hacks Applied . | . . . . . . . . . . . . . . . Relay Couplers Released . | . . . . . . . . . . . . . . . Fabnet Peak Effective % . | . . . . . . . . . . . . . . . Robots Rewired . | . . . . . . . . . . . . . . . Allies Hacked . | . . . . . . . . . . . . . . . Hacks Repelled . | . . . . . . . . . . . . . . . Allies | -11 -10 -9 -9 -9 -8 -8 -7 -7 -7 -7 -6 -5 -4 -4 -------- Run | Scr Mat Mat Min Exi Min Mat Fac Was Fac Gar Fac Fac Fac Ext Total Allies 20 | . . . . . . . . 20 . . . . . . Largest Group 20 | . . . . . . . . 20 18 18 5 5 . . Highest-Rated Group 498 | . . . . . . . . 498 447 447 134 134 . . Highest-Rated Ally 31 | . . . . . . . . 31 31 31 27 27 . . Total Orders . | . . . . . . . . . . . . . . . Ally Attacks 65 | . . . . . . . . 11 6 48 . . . . Total Damage 1006 | . . . . . . . . 175 89 742 . . . . Kills 10 | . . . . . . . . 1 1 8 . . . . Allies Corrupted . | . . . . . . . . . . . . . . . Allies Melted 1 | . . . . . . . . . . 1 . . . . Intel | -11 -10 -9 -9 -9 -8 -8 -7 -7 -7 -7 -6 -5 -4 -4 ------- Run | Scr Mat Mat Min Exi Min Mat Fac Was Fac Gar Fac Fac Fac Ext Robot Analysis Total . | . . . . . . . . . . . . . . . Derelict Logs Recovered . | . . . . . . . . . . . . . . . Drone Launches . | . . . . . . . . . . . . . . . Drone Recoveries . | . . . . . . . . . . . . . . . Exploration | -11 -10 -9 -9 -9 -8 -8 -7 -7 -7 -7 -6 -5 -4 -4 ------------- Run | Scr Mat Mat Min Exi Min Mat Fac Was Fac Gar Fac Fac Fac Ext Turns Passed 7543 | . 264 714 261 498 305 1284 312 545 334 453 321 1663 557 32 Spaces Moved 3510 | 1 178 291 128 278 143 544 129 271 164 187 189 650 319 38 Core 98 | . . . . . . . . . . . . . 60 38 Treads . | . . . . . . . . . . . . . . . Legs 3263 | 1 178 291 128 278 143 543 129 271 164 187 189 650 111 . Wheels 83 | . . . . . . 1 . . . . . . 82 . Hover 66 | . . . . . . . . . . . . . 66 . Flight . | . . . . . . . . . . . . . . . Fastest Speed 40 | 120 120 120 190 120 190 95 192 192 192 192 120 120 40 50 Average Speed 164 | 120 125 175 190 177 190 149 192 192 192 192 122 181 110 50 Slowest Speed 260 | 120 190 190 190 190 190 195 192 192 192 193 190 260 190 50 Overloaded Moves . | . . . . . . . . . . . . . . . Propulsion Burnouts . | . . . . . . . . . . . . . . . Robots Hopped . | . . . . . . . . . . . . . . . Cave-ins Triggered . | . . . . . . . . . . . . . . . Exploration Rate (%) 28 | 1 34 26 32 61 41 38 4 89 3 52 8 19 11 11 Regions Visited 14 Branch Regions 4 Pre-discovered Areas 1 | . . . . 1 . . . . . . . . . . Known Exits Taken 1 | . . . . . . . . . 1 . . . . . Unknown Exits Taken 10 | 1 1 1 1 1 1 1 . . . . 1 1 1 . Scrap Searched 1 | . . . . . 1 . . . . . . . . . Spaces Dug 25 | . . . . . . 9 . . . . . 16 . . Terrain Destroyed 162 | . . 33 . . 38 29 . . . . . 16 46 . Melee 16 | . . . . . . . . . . . . 16 . . Projectile 32 | . . . . . . . . . . . . . 32 . AOE 114 | . . 33 . . 38 29 . . . . . . 14 . Terrain Rammed . | . . . . . . . . . . . . . . . Walls Destroyed . | . . . . . . . . . . . . . . . Machines Disabled . | . . . . . . . . . . . . . . . Actions | -11 -10 -9 -9 -9 -8 -8 -7 -7 -7 -7 -6 -5 -4 -4 --------- Run | Scr Mat Mat Min Exi Min Mat Fac Was Fac Gar Fac Fac Fac Ext Total 4740 | . 218 425 136 283 157 879 194 299 183 252 261 972 430 51 Wait 589 | . 25 51 . . . 192 54 10 13 21 50 166 4 3 Move 3496 | . 177 290 127 277 142 543 129 270 163 185 188 649 318 38 Hop . | . . . . . . . . . . . . . . . Pick Up 126 | . 9 17 1 1 1 24 5 6 3 9 2 30 18 . Fast Attach 8 | . . 1 . 1 . 2 . 2 . . . 1 1 . Attach 72 | . 1 7 1 1 . 8 2 . . 6 3 22 21 . Detach 5 | . . . . 2 . . . . . . . . 3 . Swap 75 | . 2 7 . 1 4 23 3 1 . 7 . 19 8 . Drop 63 | . 3 12 . . 1 18 1 8 3 5 . 10 2 . Fire 270 | . 1 40 7 . 9 68 . . 1 14 18 57 55 . Melee 17 | . . . . . . . . . . . . 17 . . Ram 10 | . . . . . . . . . . . . . . 10 Kick 2 | . . . . . . 1 . . . . . 1 . . Crush . | . . . . . . . . . . . . . . . Escape Stasis 5 | . . . . . . . . . . 5 . . . . Rewire 2 | . . . . . . . . 2 . . . . . . Trap . | . . . . . . . . . . . . . . . Miscellaneous . | . . . . . . . . . . . . . . . Route ------- -11/Scrapyard -10/Materials -9/Materials (discovered 2 exits: *Mat / [*Min]) -9/Mines (discovered 3 exits: *Mat x2 / *Exi) -9/Exiles -8/Mines -8/Materials -7/Factory -7/Waste -7/Factory -7/Garrison -6/Factory -5/Factory -4/Factory -4/Extension History --------- Turn | Location | Event 1 | -11/Scrapyard | Discovered new exit (range 0) 1 | -11/Scrapyard | Entered Materials 222 | -10/Materials | Discovered new exit (range 15) 265 | -10/Materials | Entered another Materials area 265 | -9/Materials | Evolved 2 slots: Propulsion x1, Utility x1 306 | -9/Materials | Build established: Mutant 823 | -9/Materials | Discovered new exit (range 16) 946 | -9/Materials | Discovered new exit (range 11) 979 | -9/Materials | Entered Mines 1028 | -9/Mines | Discovered new exit (range 9) 1060 | -9/Mines | Discovered new exit (range 10) 1161 | -9/Mines | A weapon hastily lodged in a ceiling crevice suddenly fell to the ground 1230 | -9/Mines | Deemed a non-threat by the Exiles lab entrance 1230 | -9/Mines | Discovered new exit (range 5) 1240 | -9/Mines | Entered Exiles 1286 | -9/Exiles | Met 8R-AWN 1318 | -9/Exiles | Met EX-HEX 1377 | -9/Exiles | Met EX-BIN 1391 | -9/Exiles | Aligned with FarCom system 1393 | -9/Exiles | Given EX-Vault access code 1423 | -9/Exiles | Opened EX-Vault 1437 | -9/Exiles | Found Latent Energy Streamer 1479 | -9/Exiles | Warned to stay clear of 0b10 Research branches 1532 | -9/Exiles | Met EX-DEC 1627 | -9/Exiles | Learned location of Zion (-6) 1716 | -9/Exiles | Discovered new exit (range 14) 1738 | -9/Exiles | Left Exiles lab with Latent Energy Streamer 1738 | -9/Exiles | Entered Mines 1741 | -8/Mines | Core integrity fell below 50% 2007 | -8/Mines | Discovered new exit (range 16) 2043 | -8/Mines | Entered Materials 2043 | -8/Materials | Evolved 2 slots: Propulsion x1, Weapon x1 2366 | -8/Materials | Lost 5 parts (1p3n1w) 2378 | -8/Materials | Build established: Scavenger-Skirmisher 2565 | -8/Materials | Repaired Beam Rifle 3281 | -8/Materials | Discovered new exit (range 15) 3327 | -8/Materials | Entered Factory 3327 | -7/Factory | Evolved 2 slots: Utility x2 3639 | -7/Factory | Sucked down chute 3639 | -7/Factory | Entered Waste 3640 | -7/Waste | Joined by Warlord forces that had cleared the area 3910 | -7/Waste | A Compactor rumbled back to life 4111 | -7/Waste | Discovered new exit (range 13) 4184 | -7/Waste | Entered Factory 4184 | -7/Factory | Accompanied by 18 allies 4490 | -7/Factory | Identified exit to Garrison 4518 | -7/Factory | Entered Garrison 4518 | -7/Garrison | Accompanied by 18 allies 4528 | -7/Garrison | Installed Relay Interface Framework 4590 | -7/Garrison | Triggered checkpoint 4670 | -7/Garrison | Triggered checkpoint 4674 | -7/Garrison | Triggered checkpoint 4729 | -7/Garrison | Lost 3 parts (1u2w) 4878 | -7/Garrison | Triggered checkpoint 4938 | -7/Garrison | Discovered new exit (range 14) 4971 | -7/Garrison | Entered Factory 4971 | -6/Factory | Accompanied by 5 allies 4971 | -6/Factory | Evolved 2 slots: Propulsion x1, Utility x1 4993 | -6/Factory | Build established: Scavenger-Tank 5278 | -6/Factory | Discovered new exit (range 13) 5279 | -6/Factory | Fabricated Cmb. Airjet? 5292 | -6/Factory | Entered another Factory area 5292 | -5/Factory | Accompanied by 5 allies 5292 | -5/Factory | Evolved 2 slots: Power x1, Utility x1 5931 | -5/Factory | Destroyed 7 combat bots 5933 | -5/Factory | System corruption reached 10% 5938 | -5/Factory | Lost 9 parts (1p4n2u2w) 6213 | -5/Factory | System corruption reached 30% 6543 | -5/Factory | Lost 3 parts (2n1w) 6677 | -5/Factory | Lost 4 parts (1p1n2w) 6932 | -5/Factory | Discovered new exit (range 13) 6955 | -5/Factory | Entered another Factory area 6955 | -4/Factory | Evolved 2 slots: Propulsion x1, Utility x1 7007 | -4/Factory | Build established: Scavenger-Mutant 7068 | -4/Factory | Lost 3 parts (1p1n1w) 7229 | -4/Factory | Fabricated Linear Accelerator? 7281 | -4/Factory | Lost 3 parts (1p2n) 7311 | -4/Factory | Build established: Scavenger-Gunner 7453 | -4/Factory | Released all parts (8) 7467 | -4/Factory | Core integrity fell below 50% 7483 | -4/Factory | Lost 15 parts (3p5n1u6w) 7507 | -4/Factory | Discovered new exit (range 4) 7512 | -4/Factory | Entered Extension 7533 | -4/Extension | Core integrity fell below 20% 7544 | -4/Extension | Destroyed by G-67 Veteran with Field Laser Last Messages --------------- 07527_ Connecting with Terminal... 07527_ Current location identified: Extension >>Query(Hub_04(d)) A central hub linked to almost every network in both [Complex 0b10] and [Complex 0b1]. Although vital for normal system operations, local patrols are light since even suicidal attacks here would be futile given the heavy garrison support. 07528_ Triggered Segregator Trap. 07528_ Arcs of energy rise from the floor. 07531_ Triggered Segregator Trap. 07531_ Arcs of energy rise from the floor. 07535_ Slammed into G-67 Veteran. 07535_ U-05 Engineer lays Concrete. 07536_ Slammed into G-67 Veteran. 07536_ U-05 Engineer lays Concrete. 07537_ Slammed into G-67 Veteran. 07537_ Destabilizing: Core damaged (-46). 07538_ Slammed into G-67 Veteran. 07542_ Destabilizing: System corrupted (+1). 07543_ Slammed into G-67 Veteran. Map ----- +----------------------------------------------------+ | | | | | | | | | | | | | | | | | | | | | | | | | | | | | | | | | | | ????????????????????????????? | | ????????????????????????????? | | ????????????????????????????? | | ??########??????########????? | | ??# #????? ?????? | | ??# b = ###### #????????? | | ??# g== # #????????? | | ??# gg=g + #????????? | | ??# @ # #????????? | | ??# ## #????????? | | ??####+#### "??????? | | ?????# #?## ######## "??????? | | ?????# ### #??????????????? | | ?????# T #??????????????? | | ?????# ### #??????????????? | | ?????# #?## ##??????????????? | | ?????# #??# T#??????????????? | | ?????# #??#"##??????????????? | | ?????# #????????????????????? | | ?????# #????????????????????? | | ?????# #????????????????????? | | ?????# #????????????????????? | | ?????# #????????????????????? | | ?????# #????????????????????? | | ?????# #????????????????????? | | ?????# #????????????????????? | | ?????# #????????????????????? | | ?????# #????????????????????? | | ?????# #????????????????????? | | ?????# #????????????????????? | | ?????# #????????????????????? | | ?????# #????????????????????? | | ?????# #????????????????????? | +----------------------------------------------------+ Best States ------------- Heat Dissipation 94 Coolant Potential 65 Energy Generation 32 Energy Capacity 375 Matter Stores 300 Matter Capacity 300 Sight Range 22 Terrain Scan Density 10 Jamming Range 14 Armor Coverage 300 Resistance: EM 15 Phase Shifting 10 Evasion (%) 57 Targeting Accuracy 12 Target Analysis 9 Offensive Hacking 10 Item Schematics ----------------- Hpw. Tractor Beam | -8/Materials | Scanalyzed Hvy. Particle Gun | -8/Materials | Scanalyzed Robot Schematics ------------------ None Fabricated ------------ Cmb. Airjet | x2 | -6/Factory | Preloaded Linear Accelerator | x2 | -4/Factory | Preloaded Alien Tech Used ----------------- None Achievements -------------- We Are Legion Challenges ------------ None Game ------ Seed ShieldCoilShredder Manual? 0 Play Time 01:22:19 Cumulative 46.9 hours Start 2022.12.09 @ 09:52:12 End 2022.12.09 @ 12:04:01 Sessions 1 Manual Loads 0 Difficulty Rogue Special Mode None Game No. 49 Rogue 49 Adventurer 0 Explorer 0 Win Type - Total 0 Types 0/0/0/0/0/0/0/0/0 Lore% 35 Gallery% 45 Achievement% 37 Wizard Run 0 Options --------- ASCII 0 Keyboard 0 Movement Arrows Keybinds 0 Fullscreen 1 Font 18/TerminusBold Map View 76x50 Tactical HUD 1 Map Filters NONE Filters NONE Steam 1 RUN: 4f86d67a-2ac3-4115-adf3-e617d7207411